Cogmind - Beta 9.3 @@@ ROGUE MODE // 2019.12.30 @ 20:30:28 Player: RukoAvali Result: Self-destructed Performance ------------- Evolutions (3) 1500 Regions Visited (7) 1400 Robots Destroyed (60) 300 Value Destroyed (1547) 1547 Prototype IDs (8) 160 Alien Tech Used (0) 0 Bonus (27) 27 TOTAL SCORE: 4934 Bonus ------- High Alert Combat Kills 11 Follower Combat Kills 147 Friendly Fire -131 Cogmind --------- Core Integrity 540/700 Matter 300/300 Energy 47/100 System Corruption 0% Temperature Cool (0) Movement Rolling (100) Location -7/Lower Caves Parts ------- > --- POWER (3) -------- (None) > --- PROPULSION (3) --- Armored Huge Wheel > --- UTILITY (4) ------ Large Storage Unit > --- WEAPON (3) ------- (None) > --- INVENTORY (10) --- Impulse Thruster Improved Cooling System Compact Battery (300) Advanced Weight Redist. System Arc Projector Cooled Plasma Cannon Peak State ------------ > --- POWER ------------ Improved Deuterium Engine > --- PROPULSION ------- Impulse Thruster Impulse Thruster Impulse Thruster > --- UTILITY ---------- Improved Cooling System Large Storage Unit Advanced Weight Redist. System > --- WEAPON ----------- Cooled Plasma Cannon > --- INVENTORY -------- Armored Huge Wheel Impulse Thruster Compact Battery Arc Projector Cooled Plasma Cannon [Rating: 41] Favorites ----------- Power Improved Ion Engine Engine Improved Ion Engine Power Core Light Nuclear Core Propulsion Light Treads Treads Light Treads Leg Improved Aluminum Leg Wheel Compact Wheel Flight Unit Impulse Thruster Utility Small Storage Unit Device Advanced Weight Redist. System Storage Small Storage Unit Weapon Cooled Plasma Cannon Energy Gun EM Pulse Gun Energy Cannon Cooled Plasma Cannon Ballistic Gun Improved Assault Rifle Launcher Grenade Launcher Build | -11 -10 -10 -9 -9 -8 -7 -7 ------- Run | Scr Mat Min Mat Sto Mat Fac Low Slots Evolved 6 | . . . 2 . 2 2 . Power 2 | . . . . . 1 1 . Propulsion 1 | . . . 1 . . . . Utility 2 | . . . 1 . . 1 . Weapon 1 | . . . . . 1 . . Parts Attached 79 | 8 3 1 2 34 19 9 3 Power 13 | 2 . . . 7 3 1 . Engine 12 | 2 . . . 7 2 1 . Core 1 | . . . . . 1 . . Reactor . | . . . . . . . . Propulsion 28 | 2 . . 1 11 6 7 1 Treads 6 | 2 . . 1 3 . . . Leg 8 | . . . . 4 3 1 . Wheel 5 | . . . . 3 . 1 1 Hover . | . . . . . . . . Flight 9 | . . . . 1 3 5 . Utility 15 | 2 . . 1 7 4 1 . Device 5 | . . . . 2 2 1 . Storage 10 | 2 . . 1 5 2 . . Processor . | . . . . . . . . Hackware . | . . . . . . . . Protection . | . . . . . . . . Artifact . | . . . . . . . . Weapon 23 | 2 3 1 . 9 6 . 2 Energy Gun 8 | 2 2 . . 3 1 . . Energy Cannon 11 | . . 1 . 4 4 . 2 Ballistic Gun 2 | . . . . 1 1 . . Ballistic Cannon . | . . . . . . . . Launcher 2 | . 1 . . 1 . . . Special Weapon . | . . . . . . . . Impact Weapon . | . . . . . . . . Slashing Weapon . | . . . . . . . . Piercing Weapon . | . . . . . . . . Special Melee Weapon . | . . . . . . . . Unidentified Prototypes 8 | . . . . 8 . . . Parts Lost 26 | . 1 1 3 3 12 . 6 Power 5 | . . . . . 3 . 2 Propulsion 10 | . . . 2 1 4 . 3 Utility 3 | . . . . 1 2 . . Weapon 8 | . 1 1 1 1 3 . 1 Highest Loss Streak 9 | . 1 1 3 1 9 . 6 Average Slot Usage (%) 79 | . 99 92 78 91 61 38 42 Engine 11 | . 14 14 11 11 11 13 5 Treads 11 | . 28 28 25 8 . . . Leg 9 | . . . . 17 12 1 . Wheel 3 | . . . . 6 . 4 . Flight 1 | . . . . . 4 2 12 Device 2 | . . . . 1 3 7 14 Storage 23 | . 28 28 33 28 15 7 7 Energy Gun 5 | . 27 7 . 4 5 . . Energy Cannon 8 | . . 14 9 13 4 . 1 Naked Turns . | . . . . . . . . Heaviest Build 41 | 16 18 18 20 41 41 35 35 Greatest Support 60 | 40 40 40 60 60 41 39 39 Greatest Overweight (x) 8 | . . . . 3 2 1 8 Average Overweight (x) . | . . . . . . . . Largest Inventory Capacity 12 | 8 8 8 10 12 12 10 10 Average Capacity 9 | 6 8 8 10 10 9 10 10 Most Carried 10 | 3 6 5 8 10 9 10 7 Average Carried 5 | 1 4 5 5 7 5 7 6 Final Capacity 12 | 8 8 8 10 12 10 10 10 Final Carried 9 | 3 6 5 8 9 5 7 6 Class Distribution -------------------- 89% | Mutant 6% | Scavenger-Mutant 4% | Commander-Mutant Dominant Class ---------------- Mutant | -10/Materials Mutant | -10/Mines Mutant | -9/Materials Mutant | -9/Storage Mutant | -8/Materials Mutant | -7/Factory Mutant | -7/Lower Caves Resources | -11 -10 -10 -9 -9 -8 -7 -7 ----------- Run | Scr Mat Min Mat Sto Mat Fac Low Matter Collected 993 | 280 29 16 20 385 155 . 108 Remotely . | . . . . . . . . Salvage Created 2072 | 347 93 94 135 910 410 . 83 Parts 138 | 36 7 4 9 60 19 . 3 Haulers Intercepted . | . . . . . . . . Recyclers Shooed 2 | . . . 1 1 . . . Parts Field Recycled . | . . . . . . . . Retrieved Matter . | . . . . . . . . Parts Self-Destructed 2 | . . . . . . . 2 Prevented . | . . . . . . . . Kills | -11 -10 -10 -9 -9 -8 -7 -7 ------- Run | Scr Mat Min Mat Sto Mat Fac Low Combat Hostiles Destroyed 39 | . 4 2 1 19 10 . 3 Guns 8 | . 3 1 . . 4 . . Cannons 25 | . . 1 1 17 3 . 3 AOE 5 | . 1 . . 2 2 . . Classes Destroyed 10 | 3 2 . 2 3 . . . Worker 5 | 4 . . . 1 . . . Builder 1 | . . . 1 . . . . Tunneler 9 | 9 . . . . . . . Recycler 4 | 1 . . 1 1 1 . . Watcher 1 | . . . 1 . . . . Swarmer 14 | . 3 . 1 3 4 . 3 Grunt 12 | . 1 2 . 5 4 . . Brawler 2 | . . . . 1 1 . . Duelist 1 | . . . . 1 . . . Sentry 11 | . . . . 10 1 . . Best Kill Streak 5 | 2 4 1 2 5 5 . 2 Combat Bots Only 5 | . 4 1 1 5 4 . 2 Max Kills in Single Turn 3 | 1 2 1 1 2 3 . 1 Gunslinging 1 | . 1 . . . . . . Exploded 2 | . 1 . . 1 2 . . Melee . | . . . . . . . . Uniques/NPCs Destroyed . | . . . . . . . . Combat | -11 -10 -10 -9 -9 -8 -7 -7 -------- Run | Scr Mat Min Mat Sto Mat Fac Low Damage Taken 4186 | . 137 121 441 1242 1658 . 587 Core 867 | . 6 27 35 246 393 . 160 Absorbed by Shields . | . . . . . . . . Core Remaining (%) 60 | 100 . 86 . 29 28 . . Volleys Fired 161 | 33 11 9 13 58 29 . 8 Largest 3 | 2 2 2 1 2 3 . 1 Hottest 159 | 80 90 100 60 124 159 . 35 Shots Fired 275 | 66 21 16 13 99 52 . 8 Gun 151 | 66 20 7 . 25 33 . . Cannon 117 | . . 9 13 68 19 . 8 Launcher 7 | . 1 . . 6 . . . Special . | . . . . . . . . Kinetic 15 | . . . . . 15 . . Thermal 183 | 33 10 9 13 86 24 . 8 Explosive 7 | . 1 . . 6 . . . Electromagnetic 70 | 33 10 7 . 7 13 . . Robot Hit Streak 15 | 9 5 4 5 8 15 . 3 Robot Miss Streak 4 | 3 2 3 2 4 3 . 1 Penetration Max . | . . . . . . . . Secondary Targets 2 | . 1 . . . 1 . . Max Gunslinging Chain 1 | . 1 . . . 1 . . Shots Hit Robots 163 | 40 10 9 7 51 41 . 5 Core Hits 79 | 15 7 3 4 26 16 . 8 Critical Hits 1 | . . . 1 . . . . Critical Kills . | . . . . . . . . Critical Parts Destroyed 1 | . . . 1 . . . . Melee Attacks . | . . . . . . . . Impact . | . . . . . . . . Slashing . | . . . . . . . . Piercing . | . . . . . . . . Sneak Attacks . | . . . . . . . . Combat Hostiles . | . . . . . . . . Follow-up Attacks . | . . . . . . . . Damage Inflicted 4203 | 468 155 123 173 1553 1520 . 211 Guns 1191 | 395 118 53 . 183 442 . . Cannons 2083 | . . 70 173 1265 373 . 202 Explosions 920 | 73 37 . . 105 705 . . Melee . | . . . . . . . . Ramming 9 | . . . . . . . 9 Kinetic 171 | . . . . . 171 . . Thermal 3222 | 219 45 70 173 1366 1147 . 202 Explosive 142 | . 37 . . 105 . . . Electromagnetic 659 | 249 73 53 . 82 202 . . Impact . | . . . . . . . . Slashing . | . . . . . . . . Piercing . | . . . . . . . . Highest Corruption . | . . . . . . . . Average Corruption . | . . . . . . . . Corruption Purged . | . . . . . . . . Overload Shots . | . . . . . . . . Overflow Damage 334 | 3 . . . 20 285 . 26 Projectiles 54 | . . . . 20 8 . 26 Explosions 280 | 3 . . . . 277 . . Melee . | . . . . . . . . Knockbacks . | . . . . . . . . Impact . | . . . . . . . . Kinetic . | . . . . . . . . Secondary . | . . . . . . . . Self-Inflicted Damage 143 | . 32 . . . 111 . . Shots 2 | . 1 . . . 1 . . Rammed 19 | . . . . . . . 19 Targets Rammed 19 | . . . . . . . 19 Kicked . | . . . . . . . . Crushed . | . . . . . . . . Highest Temperature 330 | 72 90 226 66 330 318 . . Average Temperature 54 | 24 31 110 22 60 84 . . Received Heat Transfer 1152 | . 24 69 219 300 540 . . Effects 4 | . . . . 2 2 . . Interference 4 | . . . . 2 2 . . Siege Activations . | . . . . . . . . Robots Corrupted . | . . . . . . . . Combat Hostiles . | . . . . . . . . Parts Fried . | . . . . . . . . Impact Corruptions . | . . . . . . . . Robots Melted 1 | . . . . . 1 . . Combat Hostiles 1 | . . . . . 1 . . Parts Melted 5 | . . 1 . 3 1 . . Heat Transferred 4632 | 425 112 148 370 2155 1122 . 300 Parts Sabotaged . | . . . . . . . . Parts Stolen . | . . . . . . . . Parts Stripped . | . . . . . . . . Power Chain Reactions 3 | 2 . . . . 1 . . Missiles Intercepted . | . . . . . . . . Alert | -11 -10 -10 -9 -9 -8 -7 -7 ------- Run | Scr Mat Min Mat Sto Mat Fac Low Peak Influence 425 | 50 153 43 255 425 361 140 . Average Influence 138 | 13 38 24 86 229 245 120 . Maximum Alert Level 2 | . . . 1 2 1 . . Low Security (%) 61 | 100 100 100 74 25 19 100 . Level 1 38 | . . . 25 74 80 . . Level 2 . | . . . . . . . . Level 3 . | . . . . . . . . Level 4 . | . . . . . . . . Level 5 . | . . . . . . . . High Security . | . . . . . . . . Max Security . | . . . . . . . . Squads Dispatched 8 | . 3 . . 1 4 . . Investigation 1 | . 1 . . . . . . Extermination . | . . . . . . . . Reinforcement 3 | . 2 . . . 1 . . Assault 1 | . . . . 1 . . . Garrison 3 | . . . . . 3 . . Intercept . | . . . . . . . . Construction Impeded . | . . . . . . . . Haulers Reinforced . | . . . . . . . . Stealth | -11 -10 -10 -9 -9 -8 -7 -7 --------- Run | Scr Mat Min Mat Sto Mat Fac Low Distress Signals 6 | . . . 1 2 3 . . Communications Jammed . | . . . . . . . . Distress Signals . | . . . . . . . . Times Spotted 93 | . 15 2 15 31 22 1 7 Peak Tracking Total 11 | . 6 2 7 8 11 1 4 Tactical Retreats 9 | . 1 . . 3 3 . 2 Traps | -11 -10 -10 -9 -9 -8 -7 -7 ------- Run | Scr Mat Min Mat Sto Mat Fac Low Traps Triggered . | . . . . . . . . Indirectly . | . . . . . . . . Trap Hack Attempts . | . . . . . . . . Triggered . | . . . . . . . . Disarmed . | . . . . . . . . Reprogrammed . | . . . . . . . . Reused . | . . . . . . . . Traps Extracted . | . . . . . . . . Installed . | . . . . . . . . Triggered . | . . . . . . . . Machines | -11 -10 -10 -9 -9 -8 -7 -7 ---------- Run | Scr Mat Min Mat Sto Mat Fac Low Machines Disabled 10 | . 1 . 1 4 4 . . Max in Single Turn 2 | . 1 . . 1 2 . . Garrison Access 1 | . . . . 1 . . . Machines Sabotaged . | . . . . . . . . Garrisons Compromised . | . . . . . . . . Overloaded Fab Kills . | . . . . . . . . Fab Network Shutdowns . | . . . . . . . . Hacking | -11 -10 -10 -9 -9 -8 -7 -7 --------- Run | Scr Mat Min Mat Sto Mat Fac Low Machines Accessed 12 | . 2 . 1 6 1 2 . Terminals 10 | . 2 . 1 5 1 1 . Fabricators 1 | . . . . . . 1 . Repair Stations 1 | . . . . 1 . . . Recycling Units . | . . . . . . . . Scanalyzers . | . . . . . . . . Garrison Access . | . . . . . . . . Total Hacks 33 | . 5 . 4 15 4 5 . Successful 23 | . 4 . 2 11 3 3 . Failed 9 | . . . 2 4 1 2 . Catastrophic 2 | . . . . 1 1 . . Database Lockouts 1 | . 1 . . . . . . Manual 4 | . 1 . . 1 2 . . Terminals 27 | . 5 . 4 12 4 2 . Fabricators 3 | . . . . . . 3 . Repair Stations 3 | . . . . 3 . . . Recycling Units . | . . . . . . . . Scanalyzers . | . . . . . . . . Garrison Access . | . . . . . . . . Terminal Hacks 19 | . 4 . 2 9 3 1 . Record 9 | . 3 . 2 3 1 . . Robot Analysis 1 | . . . . 1 . . . Open Door 2 | . . . . 2 . . . Unreport Threat 2 | . 1 . . . 1 . . Locate Traps 1 | . . . . 1 . . . Registered Components 1 | . . . . 1 . . . Zone Layout 3 | . . . . 1 1 1 . Fabricator Hacks 2 | . . . . . . 2 . Build 2 | . . . . . . 2 . Repair Station Hacks 2 | . . . . 2 . . . Scan Component 1 | . . . . 1 . . . Repair 1 | . . . . 1 . . . Recycling Unit Hacks . | . . . . . . . . Scanalyzer . | . . . . . . . . Garrison Access Hacks . | . . . . . . . . Unauthorized Hacks . | . . . . . . . . Terminals . | . . . . . . . . Fabricators . | . . . . . . . . Repair Stations . | . . . . . . . . Recycling Units . | . . . . . . . . Scanalyzers . | . . . . . . . . Garrison Access . | . . . . . . . . Data Cores Recovered . | . . . . . . . . Used . | . . . . . . . . Hacking Detections 11 | . 2 . 1 6 . 2 . Full Trace Events 1 | . . . 1 . . . . Feedback Events . | . . . . . . . . Feedback Blocked . | . . . . . . . . Robot Schematics Acquired . | . . . . . . . . Robots Built . | . . . . . . . . Matter . | . . . . . . . . Time . | . . . . . . . . Total Robot Build Rating . | . . . . . . . . Part Schematics Acquired . | . . . . . . . . Parts Built 4 | . . . . . . 4 . Matter 468 | . . . . . . 468 . Time 116 | . . . . . . 116 . Total Part Build Rating 28 | . . . . . . 28 . Parts Repaired 1 | . . . . 1 . . . Time 80 | . . . . 80 . . . Parts Recycled . | . . . . . . . . Recycled Matter . | . . . . . . . . Retrieved Matter . | . . . . . . . . Retrieved Components . | . . . . . . . . Parts Scanalyzed . | . . . . . . . . Part Schematics Acquired . | . . . . . . . . Parts Damaged . | . . . . . . . . Bothacking | -11 -10 -10 -9 -9 -8 -7 -7 ------------ Run | Scr Mat Min Mat Sto Mat Fac Low Used RIF Installer . | . . . . . . . . Robots Hacked . | . . . . . . . . Non-combat . | . . . . . . . . Combat . | . . . . . . . . Robot Hacks Applied . | . . . . . . . . Relay Couplers Released 1 | . . . . 1 . . . Machine Destruction 1 | . . . . 1 . . . Robots Rewired . | . . . . . . . . Allies Hacked . | . . . . . . . . Hacks Repelled . | . . . . . . . . Allies | -11 -10 -10 -9 -9 -8 -7 -7 -------- Run | Scr Mat Min Mat Sto Mat Fac Low Total Allies 12 | . . 2 . 10 . . . Largest Group 10 | . . 2 2 10 . . . Highest-Rated Group 88 | . . 44 44 88 . . . Highest-Rated Ally 31 | . . 31 31 16 . . . Total Orders 4 | . . . . 4 . . . EXPLORE 2 | . . . . 2 . . . RETURN 2 | . . . . 2 . . . Ally Attacks 78 | . . . 30 48 . . . Total Damage 865 | . . . 421 444 . . . Kills 16 | . . . 9 7 . . . Allies Corrupted 1 | . . . . 1 . . . Allies Melted . | . . . . . . . . Intel | -11 -10 -10 -9 -9 -8 -7 -7 ------- Run | Scr Mat Min Mat Sto Mat Fac Low Robot Analysis Total 1 | . . . . 1 . . . Derelict Logs Recovered . | . . . . . . . . Drone Launches 20 | . . . . 20 . . . Drone Recoveries 6 | . . . . 6 . . . Exploration | -11 -10 -10 -9 -9 -8 -7 -7 ------------- Run | Scr Mat Min Mat Sto Mat Fac Low Turns Passed 3655 | 655 253 252 270 1397 292 382 154 Spaces Moved 2231 | 339 133 122 142 843 193 276 183 Core 6 | 5 . . . . . . 1 Treads 946 | 334 133 122 142 215 . . . Legs 606 | . . . . 451 88 67 . Wheels 299 | . . . . 177 . 122 . Hover . | . . . . . . . . Flight 374 | . . . . . 105 87 182 Fastest Speed 34 | 50 160 160 160 96 37 34 34 Average Speed 121 | 158 160 160 160 125 88 88 36 Slowest Speed 450 | 160 160 160 160 180 197 160 450 Overloaded Moves . | . . . . . . . . Propulsion Burnouts . | . . . . . . . . Robots Hopped 3 | . . . . . . . 3 Cave-ins Triggered . | . . . . . . . . Exploration Rate (%) 31 | 15 38 23 18 96 21 10 28 Regions Visited 7 Branch Regions 3 Pre-discovered Areas . | . . . . . . . . Known Exits Taken . | . . . . . . . . Unknown Exits Taken 7 | 1 1 1 1 1 1 1 . Scrap Searched 1 | . . . . . . . 1 Spaces Dug . | . . . . . . . . Terrain Destroyed 113 | 8 5 . . 56 42 . 2 Melee . | . . . . . . . . Projectile 21 | . . . . 15 4 . 2 AOE 92 | 8 5 . . 41 38 . . Actions | -11 -10 -10 -9 -9 -8 -7 -7 --------- Run | Scr Mat Min Mat Sto Mat Fac Low Total 2868 | 391 151 163 172 1084 271 416 220 Wait 258 | . . 32 11 87 8 113 7 Move 2218 | 338 132 121 141 842 192 275 177 Hop 3 | . . . . . . . 3 Pick Up 70 | 11 4 . 5 31 9 10 . Fast Attach 1 | . . . . 1 . . . Attach 56 | 7 . 1 2 17 17 9 3 Detach 16 | . . . . 1 8 4 3 Swap 22 | 1 3 . . 16 2 . . Drop 36 | 1 1 . . 23 6 5 . Fire 161 | 33 11 9 13 58 29 . 8 Melee . | . . . . . . . . Ram 19 | . . . . . . . 19 Kick . | . . . . . . . . Crush . | . . . . . . . . Escape Stasis . | . . . . . . . . Rewire . | . . . . . . . . Trap . | . . . . . . . . Miscellaneous 8 | . . . . 8 . . . Route ------- -11/Scrapyard -10/Materials -10/Mines -9/Materials -9/Storage (discovered 2 exits: *Mat / [Rec]) -8/Materials -7/Factory -7/Lower Caves History --------- Turn | Location | Event 29 | -11/Scrapyard | Discovered new exit (range 15) 656 | -11/Scrapyard | Entered Materials 657 | -10/Materials | Build established: Mutant 767 | -10/Materials | Discovered new exit (range 11) 858 | -10/Materials | Central database locked down 909 | -10/Materials | Entered Mines 910 | -10/Mines | Met a Derelict bent on vengeance 1074 | -10/Mines | Discovered new exit (range 5) 1161 | -10/Mines | Entered Materials 1161 | -9/Materials | Accompanied by 2 allies 1161 | -9/Materials | Evolved 2 slots: Propulsion x1, Utility x1 1166 | -9/Materials | Led the pair of lost Derelicts to an unsafe place 1308 | -9/Materials | Discovered new exit (range 8) 1431 | -9/Materials | Entered Storage 1453 | -9/Storage | Lost 3 parts (2n1w) 1733 | -9/Storage | Core integrity fell below 50% 1900 | -9/Storage | Assisted by bots powering up and referring to "LRC-V3" 2557 | -9/Storage | Repaired Cld. Plasma Cannon 2777 | -9/Storage | Discovered new exit (range 11) 2810 | -9/Storage | Discovered new exit (range 16) 2828 | -9/Storage | Entered Materials 2828 | -8/Materials | Evolved 2 slots: Power x1, Weapon x1 2879 | -8/Materials | Garrison activated, responded to threat 2974 | -8/Materials | Lost 9 parts (2p3n1u3w) 3004 | -8/Materials | Core integrity fell below 50% 3077 | -8/Materials | Discovered new exit (range 6) 3120 | -8/Materials | Entered Factory 3120 | -7/Factory | Evolved 2 slots: Power x1, Utility x1 3398 | -7/Factory | Fabricated Impulse Thruster (x2) 3460 | -7/Factory | Fabricated Impulse Thruster (x2) 3485 | -7/Factory | Discovered new exit (range 8) 3502 | -7/Factory | Entered Lower Caves 3624 | -7/Lower Caves | Lost 6 parts (2p3n1w) 3656 | -7/Lower Caves | Self-destructed Last Messages --------------- 03568_ S-27 Virus destroyed. 03572_ Destroyed VTOL Module. 03573_ Impulse Thruster destroyed. 03574_ Destroyed VTOL Module. 03576_ Imp. Deuterium Engine destroyed. 03576_ S-27 Virus destroyed. 03577_ Acquired 23 matter. 03578_ Acquired 30 matter. 03579_ VTOL Module fries itself beyond repair. 03583_ Lgt. Nuclear Core fries itself beyond repair. 03583_ Slammed into S-27 Virus. 03587_ Impulse Thruster destroyed. 03591_ Cld. Plasma Cannon destroyed. 03592_ Slammed into S-27 Virus. 03593_ Impulse Thruster destroyed. 03595_ Slammed into S-27 Virus. 03644_ Acquired 5 matter. 03646_ S-27 Virus destroyed. 03647_ Acquired 5 matter. 03649_ Acquired 10 matter. Map ----- +----------------------------------------------------+ | | | | | | | | | | | | | | | | | | | | | | | ?????????????????????????????????????????????????? | | ?????????????????????????????????????????????????? | | ?????????????????????????????????????????????????? | | ?????????????????????????????????????????????????? | | ?????????????????????????????????????????????????? | | ?????????????????????????????????????????????????? | | ?????????????????????????????????????????????????? | | ?????????????????????????????????????????????????? | | ?????????????????????????????????????????????????? | | ?????????????????????????????????????????????????? | | ?????????????????????????????????????????????????? | | ?????????????????????????????????????????????????? | | ?????????????????????????????????????????????????? | | ???????????????????????######????????????????????? | | ???????????????????????#%@%%##???????????????????? | | ???????????????????????#!]%#%#???????????????????? | | #####??????????????###?#]#=#%#???????????????????? | | # #########???### #?####%##???????????????????? | | #?### #???# ##????????????????????? | | # ### #?### ####??????????????????? | | ###### ## ###### # #??????????????????? | | ##????# # #??## #??????????????????? | | #????## ! ##?# #??????????????????? | | #???## ### #??????????????????? | | # #?## ##??????????????????? | | ####### ### #???????????????????? | | #??## ###### ##???????????????????? | | #### #???# ##????????????????????? | | !!% ##??## ###??# ????????????????? | | ##%! ##### #??## ????????????????? | | #####! ### ### ### ????????????????? | | ##??## ##?##?# ## ?????????????????? | | #??## #?#### ## ???????????????????? | | #??# ### ## #????????????????????? | | ##??## #????????????????????? | | #????## ##?###????????????????? | | #?????# #?# ###??????????????? | | ????## ## ##?????????????? | | ????# #?????????????? | +----------------------------------------------------+ Best States ------------- Heat Dissipation 61 Energy Generation 23 Energy Capacity 745 Matter Stores 300 Matter Capacity 300 Sight Range 16 Terrain Scan Density 10 Additional Mass Support 9 Evasion (%) 63 Recoil Reduction 3 Item Schematics ----------------- None Robot Schematics ------------------ None Fabricated ------------ Impulse Thruster | x2 | -7/Factory | Preloaded Impulse Thruster | x2 | -7/Factory | Preloaded Alien Tech Used ----------------- None Achievements -------------- Backstab It's Just You Just What I Needed Made in Tau Ceti IV Release The Drones! The More The Merrier Tourist Challenges ------------ None Game ------ Seed MetafieldCentriumAccelerator Manual? 0 Play Time 01:25:01 Cumulative 5.7 hours Start 2019.12.29 @ 16:49:37 End 2019.12.30 @ 20:30:28 Sessions 5 Manual Loads 0 Difficulty Rogue Special Mode None Game No. 4 Rogue 4 Adventurer 0 Explorer 0 Win Type - Total 0 Types 0/0/0/0/0/0/0 Lore% 3 Gallery% 7 Achievement% 8 Wizard Run 0 Options --------- ASCII 0 Keyboard 0 Movement Mouse Keybinds 0 Fullscreen 2 Font 20/X11 Map View 76x50 Tactical HUD 1 Map Filters NONE Filters NONE Steam 1 RUN: 42f92243-2219-4ed8-84fe-1271e354b178